{"text_format":"1","workbook":"xlsx","n_sheets":2,"sheets":["Orçamento Básico","Cronograma"],"not_rendered":{"charts":0,"images":0,"macros":1,"external_links":0,"defined_names":1,"comments":0,"pivot_tables":0},"unopened":[],"bounds":{"document_bytes":16777216,"sheet_cells":100000,"rows_first":2000,"rows_last":500,"rows_between":2000,"halvings":0,"cell_chars":16384,"cell_head_chars":4096},"cells_cut":0,"cells_raw":0,"read":"whole","date_system":"1900"}

{"sheet":"Orçamento Básico","index":0,"n_rows":152,"n_cols":10,"rows_kept":152,"cut":false,"hidden":false,"merged":[[148,7,148,8],[151,5,151,8],[40,7,40,8],[50,7,50,8],[12,7,12,8],[18,7,18,8],[30,7,30,8],[141,7,141,8],[124,7,124,8],[132,7,132,8],[119,7,119,8],[1,3,1,9],[3,2,3,6],[4,2,4,6],[113,7,113,8],[118,7,118,8],[99,7,99,8],[106,7,106,8],[107,7,107,8],[83,7,83,8],[60,7,60,8],[75,7,75,8],[69,7,69,8]]}
[]
[null,null,null,"PLANILHA ORÇAMENTÁRIA"]
[]
[null,"OBRA: ","EDIFICAÇÃO EM ALVENARIA - AMPLIAÇÃO EMEI BARÃOZINHO",null,null,null,null,null,"DATA BASE:"]
[null,"LOCAL:","AVENIDA ADÃO WELKER, 650 - BARÃO DE COTEGIPE/RS",null,null,null,null,null,"BDI:"]
[null,null,null,null,null,null,null,null,"BDI DIF.:"]
[]
[null,"AMPLIAÇÃO DA EMEI BARÃOZINHO"]
[null,"ITEM","REFERÊNCIA SINAPI","DESCRIÇÃO","UNID.","QUANT.","PREÇO UNIT.","BDI ADOTADO","PREÇO UNIT. C/ BDI","PREÇO TOTAL"]
[null,1,"INSTALAÇÃO DO CANTEIRO DE OBRAS"]
[null,"1.1.1","CPU 01","ADMINISTRAÇÃO LOCAL DA OBRA","OBRA",1,null,{"$f":"$J$5","v":0},{"$f":"G11+G11*H11","v":0},{"$f":"ROUND(F11*I11,2)","v":0}]
[null,"1.1.2",10775,"LOCACAO DE CONTAINER 2,30 X 6,00 M, ALT. 2,50 M, COM 1 SANITARIO, PARA ESCRITORIO, COMPLETO, SEM DIVISORIAS INTERNAS (NAO INCLUI MOBILIZACAO/DESMOBILIZACAO)                                                                                                                                                                                                                                                                                                                                              ","MES   ",5,null,{"$f":"$J$5","v":0},{"$f":"G12+G12*H12","v":0},{"$f":"ROUND(F12*I12,2)","v":0}]
[null,null,null,null,null,null,null,"Total Item ",null,{"$f":"SUM(J11:J12)","v":0}]
[]
[null,2,"SERVIÇOS INICIAIS / TRABALHOS EM TERRA / FUNDAÇÕES"]
[null,"2.1",99059,"LOCAÇÃO CONVENCIONAL DE OBRA, UTILIZANDO GABARITO DE TÁBUAS CORRIDAS PONTALETADAS A CADA 2,00M -  2 UTILIZAÇÕES. AF_03/2024","M",111,null,{"$f":"$J$5","v":0},{"$f":"G16+G16*H16","v":0},{"$f":"ROUND(F16*I16,2)","v":0}]
[null,"2.2",96521,"ESCAVAÇÃO MECANIZADA PARA BLOCO DE COROAMENTO OU SAPATA COM RETROESCAVADEIRA (INCLUINDO ESCAVAÇÃO PARA COLOCAÇÃO DE FÔRMAS). AF_01/2024","M3",61.82,null,{"$f":"$J$5","v":0},{"$f":"G17+G17*H17","v":0},{"$f":"ROUND(F17*I17,2)","v":0}]
[null,"2.3",93382,"REATERRO E COMPACTAÇÃO DAS CAVAS DAS SAPATAS","M3",43.34,null,{"$f":"$J$5","v":0},{"$f":"G18+G18*H18","v":0},{"$f":"ROUND(F18*I18,2)","v":0}]
[null,null,null,null,null,null,null,"Total Item ",null,{"$f":"SUM(J16:J18)","v":0}]
[]
[null,3,"FUNDAÇÕES E ESTRUTURAS"]
[null,"3.1","EXECUÇÃO DE SAPATAS ISOLADAS E ARRANQUE PILARES"]
[null,"3.1.1",96616,"LASTRO DE CONCRETO MAGRO, APLICADO EM BLOCOS DE COROAMENTO OU SAPATAS. AF_01/2024","M3",3.0910000000000002,null,{"$f":"$J$5","v":0},{"$f":"G23+G23*H23","v":0},{"$f":"ROUND(F23*I23,2)","v":0}]
[null,"3.1.2",104918,"ARMAÇÃO DE SAPATA ISOLADA, VIGA BALDRAME E SAPATA CORRIDA UTILIZANDO AÇO CA-50 DE 8 MM - MONTAGEM. AF_01/2024","KG",566.6,null,0,0,0]
[null,"3.1.3",96558,"CONCRETAGEM DE SAPATA, FCK 30 MPA, COM USO DE BOMBA - LANÇAMENTO, ADENSAMENTO E ACABAMENTO. AF_01/2024","M3",14.99,null,0,0,0]
[null,"3.1.4",92759,"ARMAÇÃO DE PILAR OU VIGA DE ESTRUTURA CONVENCIONAL DE CONCRETO ARMADO UTILIZANDO AÇO CA-60 DE 5,0 MM - MONTAGEM. AF_06/2022","KG",97,null,0,0,0]
[null,"3.1.5",92762,"ARMAÇÃO DE PILAR OU VIGA DE ESTRUTURA CONVENCIONAL DE CONCRETO ARMADO UTILIZANDO AÇO CA-50 DE 10,0 MM - MONTAGEM. AF_06/2022","KG",146.39999999999998,null,0,0,0]
[null,"3.1.6",92763,"ARMAÇÃO DE PILAR OU VIGA DE ESTRUTURA CONVENCIONAL DE CONCRETO ARMADO UTILIZANDO AÇO CA-50 DE 12,5 MM - MONTAGEM. AF_06/2022","KG",300.60000000000002,null,0,0,0]
[null,"3.1.7",92419,"MONTAGEM E DESMONTAGEM DE FÔRMA DE PILARES RETANGULARES E ESTRUTURAS SIMILARES, PÉ-DIREITO SIMPLES, EM CHAPA DE MADEIRA COMPENSADA RESINADA, 4 UTILIZAÇÕES. AF_09/2020","M2",55.6,null,0,0,0]
[null,"3.1.8",103672,"CONCRETAGEM DE PILARES, FCK = 25 MPA, COM USO DE BOMBA - LANÇAMENTO, ADENSAMENTO E ACABAMENTO. AF_02/2022_PS","M3",3.49,null,0,0,0]
[null,null,null,null,null,null,null,"Total Item ",null,{"$f":"SUM(J23:J30)","v":0}]
[]
[]
[null,"3.2","VIGAS BALDRAME"]
[null,"3.2.1",92759,"ARMAÇÃO DE PILAR OU VIGA DE ESTRUTURA CONVENCIONAL DE CONCRETO ARMADO UTILIZANDO AÇO CA-60 DE 5,0 MM - MONTAGEM. AF_06/2022","KG",210.2,null,{"$f":"$J$5","v":0},{"$f":"G35+G35*H35","v":0},{"$f":"ROUND(F35*I35,2)","v":0}]
[null,"3.2.2",92762,"ARMAÇÃO DE PILAR OU VIGA DE ESTRUTURA CONVENCIONAL DE CONCRETO ARMADO UTILIZANDO AÇO CA-50 DE 10,0 MM - MONTAGEM. AF_06/2022","KG",776.6,null,0,0,0]
[null,"3.2.3",92763,"ARMAÇÃO DE PILAR OU VIGA DE ESTRUTURA CONVENCIONAL DE CONCRETO ARMADO UTILIZANDO AÇO CA-50 DE 12,5 MM - MONTAGEM. AF_06/2022","KG",75.7,null,0,0,0]
[null,"3.2.4",92764,"ARMAÇÃO DE PILAR OU VIGA DE ESTRUTURA CONVENCIONAL DE CONCRETO ARMADO UTILIZANDO AÇO CA-50 DE 16,0 MM - MONTAGEM. AF_06/2022","KG",111.6,null,0,0,0]
[null,"3.2.5",96533,"FABRICAÇÃO, MONTAGEM E DESMONTAGEM DE FÔRMA PARA VIGA BALDRAME, EM MADEIRA SERRADA, E=25 MM, 2 UTILIZAÇÕES. AF_01/2024","M2",260.35000000000002,null,0,0,0]
[null,"3.2.6",96557,"CONCRETAGEM DE BLOCO DE COROAMENTO OU VIGA BALDRAME, FCK 30 MPA, COM USO DE BOMBA - LANÇAMENTO, ADENSAMENTO E ACABAMENTO. AF_01/2024","M3",16.52,null,0,0,0]
[null,null,null,null,null,null,null,"Total Item ",null,{"$f":"SUM(J35:J40)","v":0}]
[]
[]
[null,"3.3","VIGAS PVTO INTERMEDIÁRIO"]
[null,"3.3.1",92759,"ARMAÇÃO DE PILAR OU VIGA DE ESTRUTURA CONVENCIONAL DE CONCRETO ARMADO UTILIZANDO AÇO CA-60 DE 5,0 MM - MONTAGEM. AF_06/2022","KG",268.2,null,{"$f":"$J$5","v":0},{"$f":"G45+G45*H45","v":0},{"$f":"ROUND(F45*I45,2)","v":0}]
[null,"3.3.2",92762,"ARMAÇÃO DE PILAR OU VIGA DE ESTRUTURA CONVENCIONAL DE CONCRETO ARMADO UTILIZANDO AÇO CA-50 DE 10,0 MM - MONTAGEM. AF_06/2022","KG",628,null,0,0,0]
[null,"3.3.3",92763,"ARMAÇÃO DE PILAR OU VIGA DE ESTRUTURA CONVENCIONAL DE CONCRETO ARMADO UTILIZANDO AÇO CA-50 DE 12,5 MM - MONTAGEM. AF_06/2022","KG",405.9,null,0,0,0]
[null,"3.3.4",92764,"ARMAÇÃO DE PILAR OU VIGA DE ESTRUTURA CONVENCIONAL DE CONCRETO ARMADO UTILIZANDO AÇO CA-50 DE 16,0 MM - MONTAGEM. AF_06/2022","KG",431.3,null,0,0,0]
[null,"3.3.5",96533,"FABRICAÇÃO, MONTAGEM E DESMONTAGEM DE FÔRMA PARA VIGA BALDRAME, EM MADEIRA SERRADA, E=25 MM, 2 UTILIZAÇÕES. AF_01/2024","M2",304.83999999999997,null,0,0,0]
[null,"3.3.6",96557,"CONCRETAGEM DE BLOCO DE COROAMENTO OU VIGA BALDRAME, FCK 30 MPA, COM USO DE BOMBA - LANÇAMENTO, ADENSAMENTO E ACABAMENTO. AF_01/2024","M3",20.8,null,0,0,0]
[null,null,null,null,null,null,null,"Total Item ",null,{"$f":"SUM(J45:J50)","v":0}]
[]
[]
[null,"3.4","VIGAS PVTO COBERTURA"]
[null,"3.4.1",92759,"ARMAÇÃO DE PILAR OU VIGA DE ESTRUTURA CONVENCIONAL DE CONCRETO ARMADO UTILIZANDO AÇO CA-60 DE 5,0 MM - MONTAGEM. AF_06/2022","KG",310.3,null,{"$f":"$J$5","v":0},{"$f":"G55+G55*H55","v":0},{"$f":"ROUND(F55*I55,2)","v":0}]
[null,"3.4.2",92760,"ARMAÇÃO DE PILAR OU VIGA DE ESTRUTURA CONVENCIONAL DE CONCRETO ARMADO UTILIZANDO AÇO CA-50 DE 6,3 MM - MONTAGEM. AF_06/2022","KG",117.3,null,0,0,0]
[null,"3.4.3",92762,"ARMAÇÃO DE PILAR OU VIGA DE ESTRUTURA CONVENCIONAL DE CONCRETO ARMADO UTILIZANDO AÇO CA-50 DE 10,0 MM - MONTAGEM. AF_06/2022","KG",712.2,null,0,0,0]
[null,"3.4.4",92763,"ARMAÇÃO DE PILAR OU VIGA DE ESTRUTURA CONVENCIONAL DE CONCRETO ARMADO UTILIZANDO AÇO CA-50 DE 12,5 MM - MONTAGEM. AF_06/2022","KG",420.1,null,0,0,0]
[null,"3.4.5",96533,"FABRICAÇÃO, MONTAGEM E DESMONTAGEM DE FÔRMA PARA VIGA BALDRAME, EM MADEIRA SERRADA, E=25 MM, 2 UTILIZAÇÕES. AF_01/2024","M2",311.02999999999997,null,0,0,0]
[null,"3.4.6",103674,"CONCRETAGEM DE VIGAS E LAJES, FCK=25 MPA, PARA LAJES PREMOLDADAS COM USO DE BOMBA - LANÇAMENTO, ADENSAMENTO E ACABAMENTO. AF_02/2022_PS","M3",21.26,null,0,0,0]
[null,null,null,null,null,null,null,"Total Item ",null,{"$f":"SUM(J55:J60)","v":0}]
[]
[]
[null,"3.5","EXECUÇÃO DE PILARES - Nível Baldrame / Laje Cobertura"]
[null,"3.5.1",92759,"ARMAÇÃO DE PILAR OU VIGA DE ESTRUTURA CONVENCIONAL DE CONCRETO ARMADO UTILIZANDO AÇO CA-60 DE 5,0 MM - MONTAGEM. AF_06/2022","KG",578.20000000000005,null,{"$f":"$J$5","v":0},{"$f":"G65+G65*H65","v":0},{"$f":"ROUND(F65*I65,2)","v":0}]
[null,"3.5.2",92762,"ARMAÇÃO DE PILAR OU VIGA DE ESTRUTURA CONVENCIONAL DE CONCRETO ARMADO UTILIZANDO AÇO CA-50 DE 10,0 MM - MONTAGEM. AF_06/2022","KG",614.70000000000005,null,{"$f":"$J$5","v":0},{"$f":"G66+G66*H66","v":0},{"$f":"ROUND(F66*I66,2)","v":0}]
[null,"3.5.3",92763,"ARMAÇÃO DE PILAR OU VIGA DE ESTRUTURA CONVENCIONAL DE CONCRETO ARMADO UTILIZANDO AÇO CA-50 DE 12,5 MM - MONTAGEM. AF_06/2022","KG",1283.4000000000001,null,{"$f":"$J$5","v":0},{"$f":"G67+G67*H67","v":0},{"$f":"ROUND(F67*I67,2)","v":0}]
[null,"3.5.4",103672,"CONCRETAGEM DE PILARES, FCK = 25 MPA, COM USO DE BOMBA - LANÇAMENTO, ADENSAMENTO E ACABAMENTO. AF_02/2022_PS","M3",20.5,null,{"$f":"$J$5","v":0},{"$f":"G68+G68*H68","v":0},{"$f":"ROUND(F68*I68,2)","v":0}]
[null,"3.5.5",92415,"MONTAGEM E DESMONTAGEM DE FÔRMA DE PILARES RETANGULARES E ESTRUTURAS SIMILARES, PÉ-DIREITO SIMPLES, EM CHAPA DE MADEIRA COMPENSADA RESINADA, 2 UTILIZAÇÕES. AF_09/2020","M2",171.38,null,{"$f":"$J$5","v":0},{"$f":"G69+G69*H69","v":0},{"$f":"ROUND(F69*I69,2)","v":0}]
[null,null,null,null,null,null,null,"Total Item ",null,{"$f":"SUM(J65:J69)","v":0}]
[]
[]
[]
[null,"3.6","EXECUÇÃO LAJE INTERMEDIÁRIA"]
[null,"3.6.1","CPU 02","LAJE PRE-MOLDADA CONVENCIONAL (LAJOTAS + VIGOTAS) PARA PISO, UNIDIRECIONAL COBRECARGA 350 Kg/m2 (8CM + 5CM)","M2",467.97,null,{"$f":"$J$5","v":0},{"$f":"G75+G75*H75","v":0},{"$f":"ROUND(F75*I75,2)","v":0}]
[null,null,null,null,null,null,null,"Total Item ",null,{"$f":"SUM(J75:J75)","v":0}]
[]
[null,"3.7","EXECUÇÃO DA LAJE DE COBERTURA"]
[null,"3.7.1","CPU 03","LAJE PRE-MOLDADA CONVENCIONAL (LAJOTAS + VIGOTAS) PARA FORRO, UNIDIRECIONAL, SOBRECARGA DE 100 KG/M2                                                                                                                                                                                                                                                                                                                         ","M2",478.5,null,{"$f":"$J$5","v":0},{"$f":"G79+G79*H79","v":0},{"$f":"ROUND(F79*I79,2)","v":0}]
[null,"3.7.2",92508,"MONTAGEM E DESMONTAGEM DE FÔRMA DE LAJE MACIÇA, PÉ-DIREITO DUPLO, EM CHAPA DE MADEIRA COMPENSADA RESINADA, 2 UTILIZAÇÕES. AF_09/2020","M2",66.58,null,{"$f":"$J$5","v":0},{"$f":"G80+G80*H80","v":0},{"$f":"ROUND(F80*I80,2)","v":0}]
[null,"3.7.3",92768,"ARMAÇÃO DE LAJE DE ESTRUTURA CONVENCIONAL DE CONCRETO ARMADO UTILIZANDO AÇO CA-60 DE 5,0 MM - MONTAGEM. AF_06/2022","KG",182.94,null,{"$f":"$J$5","v":0},{"$f":"G81+G81*H81","v":0},{"$f":"ROUND(F81*I81,2)","v":0}]
[null,"3.7.4",92769,"ARMAÇÃO DE LAJE DE ESTRUTURA CONVENCIONAL DE CONCRETO ARMADO UTILIZANDO AÇO CA-50 DE 6,3 MM - MONTAGEM. AF_06/2022","KG",175.5,null,{"$f":"$J$5","v":0},{"$f":"G82+G82*H82","v":0},{"$f":"ROUND(F82*I82,2)","v":0}]
[null,"3.7.5",99434,"CONCRETAGEM DE LAJES EM EDIFICAÇÕES MULTIFAMILIARES FEITAS COM SISTEMA DE FÔRMAS MANUSEÁVEIS, COM CONCRETO USINADO BOMBEÁVEL FCK 25 MPA - LANÇAMENTO, ADENSAMENTO E ACABAMENTO. AF_09/2024","M3",4.67,null,{"$f":"$J$5","v":0},{"$f":"G83+G83*H83","v":0},{"$f":"ROUND(F83*I83,2)","v":0}]
[null,null,null,null,null,null,null,"Total Item ",null,{"$f":"SUM(J79:J83)","v":0}]
[]
[]
[null,"3.8","VIGAS RESERVATÓRIO E PILARES/VIGAS OITÕES"]
[null,"3.8.1","VIGAS RESPALDO RESERVATÓRIO"]
[null,"3.8.1.1",92759,"ARMAÇÃO DE PILAR OU VIGA DE ESTRUTURA CONVENCIONAL DE CONCRETO ARMADO UTILIZANDO AÇO CA-60 DE 5,0 MM - MONTAGEM. AF_06/2022","KG",17.7,null,{"$f":"$J$5","v":0},{"$f":"G89+G89*H89","v":0},{"$f":"ROUND(F89*I89,2)","v":0}]
[null,"3.8.1.2",92762,"ARMAÇÃO DE PILAR OU VIGA DE ESTRUTURA CONVENCIONAL DE CONCRETO ARMADO UTILIZANDO AÇO CA-50 DE 10,0 MM - MONTAGEM. AF_06/2022","KG",50.7,null,{"$f":"$J$5","v":0},{"$f":"G90+G90*H90","v":0},{"$f":"ROUND(F90*I90,2)","v":0}]
[null,"3.8.1.3",92452,"MONTAGEM E DESMONTAGEM DE FÔRMA DE VIGA, ESCORAMENTO METÁLICO, PÉ-DIREITO SIMPLES, EM CHAPA DE MADEIRA RESINADA, 2 UTILIZAÇÕES. AF_09/2020","M2",11.96,null,{"$f":"$J$5","v":0},{"$f":"G91+G91*H91","v":0},{"$f":"ROUND(F91*I91,2)","v":0}]
[null,"3.8.1.4",103683,"CONCRETAGEM DE VIGAS E LAJES, FCK=25 MPA, PARA QUALQUER TIPO DE LAJE COM BALDES EM EDIFICAÇÃO DE MULTIPAVIMENTOS ATÉ 04 ANDARES - LANÇAMENTO, ADENSAMENTO E ACABAMENTO. AF_02/2022","M3",0.69,null,{"$f":"$J$5","v":0},{"$f":"G92+G92*H92","v":0},{"$f":"ROUND(F92*I92,2)","v":0}]
[null,"3.8.2","VIGAS E PILARES OITÕES"]
[null,"3.8.2.1",92759,"ARMAÇÃO DE PILAR OU VIGA DE ESTRUTURA CONVENCIONAL DE CONCRETO ARMADO UTILIZANDO AÇO CA-60 DE 5,0 MM - MONTAGEM. AF_06/2022","KG",44.09,null,{"$f":"$J$5","v":0},{"$f":"G94+G94*H94","v":0},{"$f":"ROUND(F94*I94,2)","v":0}]
[null,"3.8.2.2",92762,"ARMAÇÃO DE PILAR OU VIGA DE ESTRUTURA CONVENCIONAL DE CONCRETO ARMADO UTILIZANDO AÇO CA-50 DE 10,0 MM - MONTAGEM. AF_06/2022","KG",45.92,null,0,0,0]
[null,"3.8.2.3",103687,"CONCRETAGEM DE PILARES, FCK=25 MPA, COM USO DE JERICAS EM ELEVADOR DE CABO - LANÇAMENTO, ADENSAMENTO E ACABAMENTO. AF_02/2022","M3",0.5,null,0,0,0]
[null,"3.8.2.4",103683,"CONCRETAGEM DE VIGAS E LAJES, FCK=25 MPA, PARA QUALQUER TIPO DE LAJE COM BALDES EM EDIFICAÇÃO DE MULTIPAVIMENTOS ATÉ 04 ANDARES - LANÇAMENTO, ADENSAMENTO E ACABAMENTO. AF_02/2022","M3",1.0900000000000001,null,0,0,0]
[null,"3.8.2.5",92409,"MONTAGEM E DESMONTAGEM DE FÔRMA DE PILARES RETANGULARES E ESTRUTURAS SIMILARES, PÉ-DIREITO SIMPLES, EM MADEIRA SERRADA, 1 UTILIZAÇÃO. AF_09/2020","M2",1.97,null,0,0,0]
[null,"3.8.2.6",92446,"MONTAGEM E DESMONTAGEM DE FÔRMA DE VIGA, ESCORAMENTO COM PONTALETE DE MADEIRA, PÉ-DIREITO SIMPLES, EM MADEIRA SERRADA, 1 UTILIZAÇÃO. AF_09/2020","M2",14.6,null,0,0,0]
[null,null,null,null,null,null,null,"Total Item ",null,{"$f":"SUM(J88:J99)","v":0}]
[]
[null,"3.9","ESCADA "]
[null,"3.9.1",101980,"MONTAGEM E DESMONTAGEM DE FÔRMA PARA ESCADAS, COM 2 LANCES EM \"U\" E LAJE PLANA, EM CHAPA DE MADEIRA COMPENSADA RESINADA, 4 UTILIZAÇÕES. AF_11/2020","M2",25.240000000000002,null,{"$f":"$J$5","v":0},{"$f":"G103+G103*H103","v":0},{"$f":"ROUND(F103*I103,2)","v":0}]
[null,"3.9.2",95945,"ARMAÇÃO DE ESCADA, DE UMA ESTRUTURA CONVENCIONAL DE CONCRETO ARMADO UTILIZANDO AÇO CA-50 DE 8,0 MM - MONTAGEM. AF_11/2020","KG",21.5,null,{"$f":"$J$5","v":0},{"$f":"G104+G104*H104","v":0},{"$f":"ROUND(F104*I104,2)","v":0}]
[null,"3.9.3",95946,"ARMAÇÃO DE ESCADA, DE UMA ESTRUTURA CONVENCIONAL DE CONCRETO ARMADO UTILIZANDO AÇO CA-50 DE 10,0 MM - MONTAGEM. AF_11/2020","KG",102.6,null,{"$f":"$J$5","v":0},{"$f":"G105+G105*H105","v":0},{"$f":"ROUND(F105*I105,2)","v":0}]
[null,"3.9.4",103675,"CONCRETAGEM DE VIGAS E LAJES, FCK=25 MPA, PARA LAJES MACIÇAS OU NERVURADAS COM USO DE BOMBA - LANÇAMENTO, ADENSAMENTO E ACABAMENTO. AF_02/2022_PS","M3",2.35,null,{"$f":"$J$5","v":0},{"$f":"G106+G106*H106","v":0},{"$f":"ROUND(F106*I106,2)","v":0}]
[null,null,null,null,null,null,null,"Total Item ",null,{"$f":"SUM(J103:J106)","v":0}]
[null,null,null,null,null,null,null,"Total Geral Estruturas",null,{"$f":"J107+J100+J84+J76+J70+J61+J51+J41+J31","v":0}]
[]
[null,4,"ALVENARIAS"]
[null,"4.1","ALVENARIA PAVIMENTO INFERIOR"]
[null,"4.1.1",103334,"ALVENARIA DE VEDAÇÃO DE BLOCOS CERÂMICOS FURADOS NA HORIZONTAL DE 14X9X19 CM (ESPESSURA 14 CM, BLOCO DEITADO) E ARGAMASSA DE ASSENTAMENTO COM PREPARO EM BETONEIRA. AF_12/2021","M2",406.64,null,{"$f":"$J$5","v":0},{"$f":"G112+G112*H112","v":0},{"$f":"ROUND(F112*I112,2)","v":0}]
[null,"4.1.2",105023,"VERGA MOLDADA IN LOCO EM CONCRETO, ESPESSURA DE *15* CM. AF_03/2024","M",78.62,null,{"$f":"$J$5","v":0},{"$f":"G113+G113*H113","v":0},{"$f":"ROUND(F113*I113,2)","v":0}]
[null,null,null,null,null,null,null,"Total Item ",null,{"$f":"SUM(J112:J113)","v":0}]
[]
[null,"4.2","ALVENARIA PAVIMENTO SUPERIOR / OITÕES / RESERVATÓRIO"]
[null,"4.2.1",103334,"ALVENARIA DE VEDAÇÃO DE BLOCOS CERÂMICOS FURADOS NA HORIZONTAL DE 14X9X19 CM (ESPESSURA 14 CM, BLOCO DEITADO) E ARGAMASSA DE ASSENTAMENTO COM PREPARO EM BETONEIRA. AF_12/2021","M2",435.3,null,{"$f":"$J$5","v":0},{"$f":"G117+G117*H117","v":0},{"$f":"ROUND(F117*I117,2)","v":0}]
[null,"4.2.2",105023,"VERGA MOLDADA IN LOCO EM CONCRETO, ESPESSURA DE *15* CM. AF_03/2024","M",82.93,null,{"$f":"$J$5","v":0},{"$f":"G118+G118*H118","v":0},{"$f":"ROUND(F118*I118,2)","v":0}]
[null,null,null,null,null,null,null,"Total Item ",null,{"$f":"SUM(J117:J118)","v":0}]
[null,null,null,null,null,null,null,"Total Geral  Alvenarias",null,{"$f":"J119+J114","v":0}]
[]
[]
[null,5,"IMPERMEABILIZAÇÕES DE VIGAS BALDRAME"]
[null,"5.1",98554,"IMPERMEABILIZAÇÃO DE SUPERFÍCIE COM MEMBRANA À BASE DE RESINA ACRÍLICA, 3 DEMÃOS. AF_09/2023","M2",260.35000000000002,null,{"$f":"$J$5","v":0},{"$f":"G124+G124*H124","v":0},{"$f":"ROUND(F124*I124,2)","v":0}]
[null,null,null,null,null,null,null,"Total Item ",null,{"$f":"SUM(J124:J124)","v":0}]
[]
[]
[null,6,"PISO PAVIMENTO TÉRREO"]
[null,"6.1","EXECUÇÃO DO PISO EM CONCRETO ARMADO PVTO TÉRREO"]
[null,"6.1.1",93382,"REATERRO E COMPACTAÇÃO PARA EXECUÇÃO DO PISO DE CONCRETO","M3",165.26399999999998,null,{"$f":"$J$5","v":0},{"$f":"G130+G130*H130","v":0},{"$f":"ROUND(F130*I130,2)","v":0}]
[null,"6.1.2","CPU 04","LASTRO DE BRITA (PEDRA BRITANA Nº 01), APLICADO EM PISOS SOBRE SOLOS, ESPESSURA DE 5CM","OBRA",8.2631999999999994,null,{"$f":"$J$5","v":0},{"$f":"G131+G131*H131","v":0},{"$f":"ROUND(F131*I131,2)","v":0}]
[null,"6.1.3",94995,"EXECUÇÃO DE PASSEIO (CALÇADA) OU PISO DE CONCRETO COM CONCRETO MOLDADO IN LOCO, USINADO, ACABAMENTO CONVENCIONAL, ESPESSURA 8 CM, ARMADO. AF_08/2022","M2",413.15999999999991,null,{"$f":"$J$5","v":0},{"$f":"G132+G132*H132","v":0},{"$f":"ROUND(F132*I132,2)","v":0}]
[null,null,null,null,null,null,null,"Total Item ",null,{"$f":"SUM(J130:J132)","v":0}]
[]
[null,7,"INSTALAÇÕES ELÉTRICAS - PASSAGEM DE ELETRODUTOS"]
[null,"7.1","PASSAGEM DE ELETRODUTOS"]
[null,"7.1.1",91834,"ELETRODUTO FLEXÍVEL CORRUGADO, PVC, DN 25 MM (3/4\"), PARA CIRCUITOS TERMINAIS, INSTALADO EM FORRO - FORNECIMENTO E INSTALAÇÃO. AF_03/2023_PA","M",800,null,{"$f":"$J$5","v":0},{"$f":"G137+G137*H137","v":0},{"$f":"ROUND(F137*I137,2)","v":0}]
[null,"7.1.2",91835,"ELETRODUTO FLEXÍVEL CORRUGADO REFORÇADO, PVC, DN 25 MM (3/4\"), PARA CIRCUITOS TERMINAIS, INSTALADO EM FORRO - FORNECIMENTO E INSTALAÇÃO. AF_03/2023_PA","M",280,null,{"$f":"$J$5","v":0},{"$f":"G138+G138*H138","v":0},{"$f":"ROUND(F138*I138,2)","v":0}]
[null,"7.1.3",91835,"ELETRODUTO FLEXÍVEL CORRUGADO REFORÇADO, PVC, DN 25 MM (3/4\"), PARA CIRCUITOS TERMINAIS, INSTALADO EM FORRO - FORNECIMENTO E INSTALAÇÃO. AF_03/2023_PA","M",20,null,{"$f":"$J$5","v":0},{"$f":"G139+G139*H139","v":0},{"$f":"ROUND(F139*I139,2)","v":0}]
[null,"7.1.4",91840,"ELETRODUTO FLEXÍVEL CORRUGADO, PEAD, DN 40 MM (1 1/4\"), PARA CIRCUITOS TERMINAIS, INSTALADO EM FORRO - FORNECIMENTO E INSTALAÇÃO. AF_03/2023_PA","M",32,null,{"$f":"$J$5","v":0},{"$f":"G140+G140*H140","v":0},{"$f":"ROUND(F140*I140,2)","v":0}]
[null,"7.1.5",91936,"CAIXA OCTOGONAL 4\" X 4\", PVC, INSTALADA EM LAJE - FORNECIMENTO E INSTALAÇÃO. AF_03/2023","UN",151,null,{"$f":"$J$5","v":0},{"$f":"G141+G141*H141","v":0},{"$f":"ROUND(F141*I141,2)","v":0}]
[null,null,null,null,null,null,null,"Total Item ",null,{"$f":"SUM(J137:J141)","v":0}]
[]
[]
[null,8,"COBERTURA"]
[null,"8.1",94213,"TELHAMENTO COM TELHA DE AÇO/ALUMÍNIO E = 0,5 MM, COM ATÉ 2 ÁGUAS, INCLUSO IÇAMENTO. AF_07/2019","M2",559.66999999999996,null,{"$f":"$J$5","v":0},{"$f":"G146+G146*H146","v":0},{"$f":"ROUND(F146*I146,2)","v":0}]
[null,"8.2",100378,"FABRICAÇÃO E INSTALAÇÃO DE TESOURA (INTEIRA OU MEIA) EM AÇO, VÃOS MAIORES QUE 6,0 M E MENORES QUE 12,0 M, INCLUSO IÇAMENTO. AF_07/2019","KG",1440,null,{"$f":"$J$5","v":0},{"$f":"G147+G147*H147","v":0},{"$f":"ROUND(F147*I147,2)","v":0}]
[null,"8.3","Cotação","INSTALAÇÃO DE TERÇAS METÁLICAS PERFIL U ENRIGECIDO 75x40x15x265","M",484.4,null,{"$f":"$J$5","v":0},{"$f":"G148+G148*H148","v":0},{"$f":"ROUND(F148*I148,2)","v":0}]
[null,null,null,null,null,null,null,"Total Item ",null,{"$f":"SUM(J146:J148)","v":0}]
[]
[]
[null,null,null,null,null,"Total Geral do Orçamento:",null,null,null,{"$f":"J13+J19+J108+J120+J125+J133+J142+J149","v":0}]

{"sheet":"Cronograma","index":1,"n_rows":32,"n_cols":10,"rows_kept":32,"cut":false,"hidden":false,"merged":[[28,0,31,1],[28,2,31,2],[16,0,17,0],[16,1,17,1],[16,2,17,2],[26,0,27,0],[26,1,27,1],[26,2,27,2],[20,1,21,1],[20,0,21,0],[20,2,21,2],[18,0,19,0],[18,1,19,1],[18,2,19,2],[22,0,23,0],[22,1,23,1],[12,0,13,0],[12,1,13,1],[12,2,13,2],[14,0,15,0],[14,1,15,1],[14,2,15,2],[2,0,2,4],[8,0,8,4],[10,0,11,0],[10,1,11,1],[10,2,11,2],[5,1,5,5],[6,1,6,5],[22,2,23,2],[24,0,25,0],[24,1,25,1],[24,2,25,2],[9,8,9,9],[10,8,10,9],[12,8,13,8],[12,9,13,9],[14,8,15,8],[14,9,15,9],[16,8,17,8],[16,9,17,9],[18,8,19,8],[18,9,19,9],[20,8,21,8],[20,9,21,9],[22,8,23,8],[22,9,23,9],[24,8,25,8],[24,9,25,9],[26,8,27,8],[26,9,27,9]]}
[]
[]
["CRONOGRAMA FÍSICO / FINANCEIRO"]
[]
[]
["OBRA: ","EDIFICAÇÃO EM ALVENARIA - AMPLIAÇÃO EMEI BARÃOZINHO"]
["LOCAL:","AVENIDA ADÃO WELKER, 650 - BARÃO DE COTEGIPE/RS"]
[]
["CRONOGRAMA FÍSICO-FINANCEIRO"]
[]
["ITEM","DESCRIÇÃO","TOTAL","MÊS 1","MÊS 2","MÊS 3","MÊS 4","MÊS 5","Totais"]
[null,null,null,"%","%","%","%","%","%","Valor"]
[1,{"$f":"'Orçamento Básico'!C10","v":"INSTALAÇÃO DO CANTEIRO DE OBRAS"},{"$f":"'Orçamento Básico'!J13","v":0},1,null,null,null,null,{"$f":"F13+E13+D13+G13+H13","v":1},{"$f":"F14+E14+D14+G14+H14","v":0}]
[null,null,null,{"$f":"$C13*D13","v":0},{"$f":"$C13*E13","v":0},{"$f":"$C13*F13","v":0},{"$f":"$C13*G13","v":0},{"$f":"$C13*H13","v":0}]
[2,{"$f":"'Orçamento Básico'!C15","v":"SERVIÇOS INICIAIS / TRABALHOS EM TERRA / FUNDAÇÕES"},{"$f":"'Orçamento Básico'!J19","v":0},1,null,null,null,null,{"$f":"F15+E15+D15+G15+H15","v":1},{"$f":"F16+E16+D16+G16+H16","v":0}]
[null,null,null,{"$f":"$C15*D15","v":0},{"$f":"$C15*E15","v":0},{"$f":"$C15*F15","v":0},{"$f":"$C15*G15","v":0},{"$f":"$C15*H15","v":0}]
[3,{"$f":"'Orçamento Básico'!C21","v":"FUNDAÇÕES E ESTRUTURAS"},{"$f":"'Orçamento Básico'!J108","v":0},0.14000000000000001,0.1,0.3,0.2,0.26,{"$f":"F17+E17+D17+G17+H17","v":1},{"$f":"F18+E18+D18+G18+H18","v":0}]
[null,null,null,{"$f":"$C17*D17","v":0},{"$f":"$C17*E17","v":0},{"$f":"$C17*F17","v":0},{"$f":"$C17*G17","v":0},{"$f":"$C17*H17","v":0}]
[4,{"$f":"'Orçamento Básico'!C110","v":"ALVENARIAS"},{"$f":"'Orçamento Básico'!J120","v":0},null,0.2,0.3,0.5,null,{"$f":"F19+E19+D19+G19+H19","v":1},{"$f":"F20+E20+D20+G20+H20","v":0}]
[null,null,null,{"$f":"$C19*D19","v":0},{"$f":"$C19*E19","v":0},{"$f":"$C19*F19","v":0},{"$f":"$C19*G19","v":0},{"$f":"$C19*H19","v":0}]
[5,{"$f":"'Orçamento Básico'!C123","v":"IMPERMEABILIZAÇÕES DE VIGAS BALDRAME"},{"$f":"'Orçamento Básico'!J125","v":0},null,1,null,null,null,{"$f":"F21+E21+D21+G21+H21","v":1},{"$f":"F22+E22+D22+G22+H22","v":0}]
[null,null,null,{"$f":"$C21*D21","v":0},{"$f":"$C21*E21","v":0},{"$f":"$C21*F21","v":0},{"$f":"$C21*G21","v":0},{"$f":"$C21*H21","v":0}]
[6,{"$f":"'Orçamento Básico'!C129","v":"EXECUÇÃO DO PISO EM CONCRETO ARMADO PVTO TÉRREO"},{"$f":"'Orçamento Básico'!J133","v":0},null,1,null,null,null,{"$f":"F23+E23+D23+G23+H23","v":1},{"$f":"F24+E24+D24+G24+H24","v":0}]
[null,null,null,{"$f":"$C23*D23","v":0},{"$f":"$C23*E23","v":0},{"$f":"$C23*F23","v":0},{"$f":"$C23*G23","v":0},{"$f":"$C23*H23","v":0}]
[7,{"$f":"'Orçamento Básico'!C135","v":"INSTALAÇÕES ELÉTRICAS - PASSAGEM DE ELETRODUTOS"},{"$f":"'Orçamento Básico'!J142","v":0},null,null,0.5,0.5,null,{"$f":"F25+E25+D25+G25+H25","v":1},{"$f":"F26+E26+D26+G26+H26","v":0}]
[null,null,null,{"$f":"$C25*D25","v":0},{"$f":"$C25*E25","v":0},{"$f":"$C25*F25","v":0},{"$f":"$C25*G25","v":0},{"$f":"$C25*H25","v":0}]
[8,{"$f":"'Orçamento Básico'!C145","v":"COBERTURA"},{"$f":"'Orçamento Básico'!J149","v":0},null,null,null,null,1,1,{"$f":"F28+E28+D28+G28+H28","v":0}]
[null,null,null,{"$f":"$C27*D27","v":0},{"$f":"$C27*E27","v":0},{"$f":"$C27*F27","v":0},{"$f":"$C27*G27","v":0},{"$f":"$C27*H27","v":0}]
["TOTAL",null,{"$f":"SUM(C13:C28)","v":0},{"$f":"D14+D16+D18+D20+D22+D24+D26+D28","v":0},{"$f":"E14+E16+E18+E20+E22+E24+E26+E28","v":0},{"$f":"F14+F16+F18+F20+F22+F24+F26+F28","v":0},{"$f":"G14+G16+G18+G20+G22+G24+G26+G28","v":0},{"$f":"H14+H16+H18+H20+H22+H24+H26+H28","v":0},null,{"$f":"SUM(J13:J27)","v":0}]
[null,null,null,{"$f":"D29/$C$29","v":{"$error":"#DIV/0!"}},{"$f":"E29/$C$29","v":{"$error":"#DIV/0!"}},{"$f":"F29/$C$29","v":{"$error":"#DIV/0!"}},{"$f":"G29/$C$29","v":{"$error":"#DIV/0!"}},{"$f":"H29/$C$29","v":{"$error":"#DIV/0!"}}]
[null,null,null,{"$f":"D29","v":0},{"$f":"E29+D31","v":0},0,0,0]
[null,null,null,{"$f":"+D30","v":{"$error":"#DIV/0!"}},{"$error":"#DIV/0!"},{"$error":"#DIV/0!"},{"$error":"#DIV/0!"},{"$error":"#DIV/0!"}]